fUSD/lending_fUSD_20250617
["ID","MTS","AMOUNT","RATE_DAILY","PERIOD"]
[366273218,1750169479885,-490.0,0.00016767,2]
[366273219,1750169479895,-490.0,0.00016767,2]
[366273220,1750169479905,-490.0,0.00016767,2]
[366273221,1750169479915,-490.0,0.00016767,2]
[366273222,1750169479925,-490.0,0.00016767,2]
[366273223,1750169479935,-490.0,0.00016767,2]
[366273224,1750169479945,-499.6484435,0.00016767,2]
[366273225,1750169479955,-490.0,0.00016767,2]
[366273226,1750169479965,-583.8,0.00016767,2]
[366273227,1750169479975,-490.0,0.00016767,2]
[366273228,1750169479985,-506.72,0.00016767,2]
[366273229,1750169479995,-490.0,0.00016767,2]
[366273230,1750169480006,-490.0,0.00016767,2]
[366273231,1750169480016,-1460.14,0.00016767,2]
[366273232,1750169480026,-490.0,0.00016767,2]
[366273233,1750169480037,-151.0,0.00016767,2]
[366273234,1750169480046,-490.0,0.00016767,2]
[366273235,1750169480056,-490.0,0.00016767,2]
[366273236,1750169480067,-490.0,0.00016767,2]
[366273237,1750169480077,-490.0,0.00016767,2]
[366273238,1750169480087,-490.0,0.00016767,2]
[366273239,1750169480097,-151.0,0.00016767,2]
[366273240,1750169480107,-846.28,0.00016767,2]
[366273241,1750169480117,-151.0,0.00016767,2]
[366273242,1750169480127,-499.28590497,0.00016767,2]
[366273243,1750169480137,-510.4,0.00016767,2]
[366273244,1750169480147,-490.0,0.00016767,2]
[366273245,1750169480157,-490.0,0.00016767,2]
[366273246,1750169480167,-490.0,0.00016767,2]
[366273247,1750169480177,-490.0,0.00016767,2]
[366273248,1750169480187,-490.0,0.00016767,2]
[366273249,1750169480198,-490.0,0.00016767,2]
[366273250,1750169480207,-490.0,0.00016767,2]
[366273251,1750169480218,-627.34,0.00016767,2]
[366273252,1750169480232,-490.0,0.00016767,2]
[366273253,1750169480244,-490.0,0.00016767,2]
[366273254,1750169480254,-490.0,0.00016767,2]
[366273255,1750169480265,-490.0,0.00016767,2]
[366273256,1750169480277,-379.01439925,0.00016767,2]
[366273257,1750169480287,-490.0,0.00016767,2]
[366273258,1750169480297,-490.0,0.00016767,2]
[366273259,1750169480309,-490.0,0.00016767,2]
[366273260,1750169480319,-490.0,0.00016767,2]
[366273261,1750169480328,-490.0,0.00016767,2]
[366273262,1750169480338,-490.0,0.00016767,2]
[366273263,1750169480348,-605.43,0.00016767,2]
[366273264,1750169480358,-360.959804,0.00016767,2]
[366273265,1750169480368,-490.0,0.00016767,2]
[366273266,1750169480378,-360.959804,0.00016767,2]
[366273267,1750169480388,-490.0,0.00016767,2]
[366273268,1750169480398,-490.0,0.00016767,2]
[366273269,1750169480408,-360.959804,0.00016767,2]
[366273270,1750169480418,-360.959804,0.00016767,2]
[366273271,1750169480429,-490.0,0.00016767,2]
[366273272,1750169480439,-490.0,0.00016767,2]
[366273273,1750169480449,-490.0,0.00016767,2]
[366273274,1750169480459,-490.0,0.00016767,2]
[366273275,1750169480469,-595.89,0.00016767,2]
[366273276,1750169480479,-490.0,0.00016767,2]
[366273277,1750169480489,-490.0,0.00016767,2]
[366273278,1750169480500,-490.0,0.00016767,2]
[366273279,1750169480511,-211.97552377,0.00016767,2]
[366273280,1750169480521,-490.0,0.00016767,2]
[366273281,1750169480532,-490.0,0.00016767,2]
[366273282,1750169480542,-490.0,0.00016767,2]
[366273283,1750169480552,-490.0,0.00016767,2]
[366273284,1750169480562,-1234.9,0.00016767,2]
[366273285,1750169480572,-490.0,0.00016767,2]
[366273286,1750169480582,-490.0,0.00016767,2]
[366273287,1750169480592,-1625.25,0.00016767,2]
[366273288,1750169480602,-490.0,0.00016767,2]
[366273289,1750169480612,-490.0,0.00016767,2]
[366273290,1750169480622,-527.56,0.00016767,2]
[366273291,1750169480633,-490.0,0.00016767,2]
[366273292,1750169480643,-490.0,0.00016767,2]
[366273293,1750169480654,-490.0,0.00016767,2]
[366273294,1750169480664,-490.0,0.00016767,2]
[366273295,1750169480673,-490.0,0.00016767,2]
[366273296,1750169480683,-490.0,0.00016767,2]
[366273297,1750169480693,-490.0,0.00016767,2]
[366273298,1750169480703,-490.0,0.00016767,2]
[366273299,1750169480713,-490.0,0.00016767,2]
[366273300,1750169480724,-490.0,0.00016767,2]
[366273301,1750169480734,-490.0,0.00016767,2]
[366273302,1750169480744,-490.0,0.00016767,2]
[366273303,1750169480754,-490.0,0.00016767,2]
[366273304,1750169480764,-840.75,0.00016767,2]
[366273305,1750169480775,-490.0,0.00016767,2]
[366273306,1750169480785,-490.0,0.00016767,2]
[366273307,1750169480795,-1085.22,0.00016767,2]
[366273308,1750169480805,-490.0,0.00016767,2]
[366273309,1750169480815,-490.0,0.00016767,2]
[366273310,1750169480825,-490.0,0.00016767,2]
[366273311,1750169480834,-490.0,0.00016767,2]
[366273312,1750169480844,-490.0,0.00016767,2]
[366273313,1750169480854,-490.0,0.00016767,2]
[366273314,1750169480864,-402.52481634,0.00016767,2]
[366273315,1750169480874,-490.0,0.00016767,2]
[366273316,1750169480885,-490.0,0.00016767,2]
[366273317,1750169480895,-708.95,0.00016767,2]
[366273318,1750169480905,-2078.22,0.00016767,2]
[366273319,1750169480915,-490.0,0.00016767,2]
[366273320,1750169480926,-151.0,0.00016767,2]
[366273321,1750169480936,-852.64,0.00016767,2]
[366273322,1750169480946,-490.0,0.00016767,2]
[366273323,1750169480956,-490.0,0.00016767,2]
[366273324,1750169480966,-151.0,0.00016767,2]
[366273325,1750169480977,-490.0,0.00016767,2]
[366273326,1750169480987,-490.0,0.00016767,2]
[366273327,1750169480998,-490.0,0.00016767,2]
[366273328,1750169481008,-657.3,0.00016767,2]
[366273329,1750169481018,-151.0,0.00016767,2]
[366273330,1750169481029,-151.0,0.00016767,2]
[366273331,1750169481039,-490.0,0.00016767,2]
[366273332,1750169481048,-1177.65,0.00016767,2]
[366273333,1750169481059,-1120.72,0.00016767,2]
[366273334,1750169481068,-490.0,0.00016767,2]
[366273335,1750169481078,-490.0,0.00016767,2]
[366273336,1750169481088,-490.0,0.00016767,2]
[366273337,1750169481098,-490.0,0.00016767,2]
[366273338,1750169481108,-490.0,0.00016767,2]
[366273339,1750169481118,-490.0,0.00016767,2]
[366273340,1750169481128,-460.60637747,0.00016767,2]
[366273341,1750169481137,-490.0,0.00016767,2]
[366273342,1750169481148,-490.0,0.00016767,2]
[366273343,1750169481158,-490.0,0.00016767,2]
[366273344,1750169481168,-490.0,0.00016767,2]
[366273345,1750169481178,-490.0,0.00016767,2]
[366273346,1750169481188,-490.0,0.00016767,2]
[366273347,1750169481197,-490.0,0.00016767,2]
[366273348,1750169481208,-1501.26,0.00016767,2]
[366273349,1750169481217,-490.0,0.00016767,2]
[366273350,1750169481232,-1018.1,0.00016767,2]
[366273351,1750169481242,-490.0,0.00016767,2]
[366273352,1750169481252,-490.0,0.00016767,2]
[366273353,1750169481262,-203.213799,0.00016767,2]
[366273354,1750169481272,-490.0,0.00016767,2]
[366273355,1750169481284,-515.25,0.00016767,2]
[366273356,1750169481294,-490.0,0.00016767,2]
[366273357,1750169481305,-900.17,0.00016767,2]
[366273358,1750169481315,-490.0,0.00016767,2]
[366273359,1750169481325,-300.25,0.00016767,2]
[366273360,1750169481335,-490.0,0.00016767,2]
[366273361,1750169481345,-213.443501,0.00016767,2]
[366273362,1750169481355,-490.0,0.00016767,2]
[366273363,1750169481365,-213.443501,0.00016767,2]
[366273364,1750169481375,-967.36,0.00016767,2]
[366273365,1750169481385,-213.443501,0.00016767,2]
[366273366,1750169481396,-213.443501,0.00016767,2]
[366273367,1750169481407,-490.0,0.00016767,2]
[366273368,1750169481417,-490.0,0.00016767,2]
[366273369,1750169481427,-490.0,0.00016767,2]
[366273370,1750169481437,-496.3,0.00016767,2]
[366273371,1750169481447,-490.0,0.00016767,2]
[366273372,1750169481458,-490.0,0.00016767,2]
[366273373,1750169481468,-490.0,0.00016767,2]
[366273374,1750169481478,-490.0,0.00016767,2]
[366273375,1750169481488,-490.0,0.00016767,2]
[366273376,1750169481498,-697.6,0.00016767,2]
[366273377,1750169481508,-490.0,0.00016767,2]
[366273378,1750169481518,-490.0,0.00016767,2]
[366273379,1750169481529,-490.0,0.00016767,2]
[366273380,1750169481538,-519.74452839,0.00016767,2]
[366273381,1750169481548,-524.24,0.00016767,2]
[366273382,1750169481559,-490.0,0.00016767,2]
[366273383,1750169481568,-490.0,0.00016767,2]
[366273384,1750169481578,-490.0,0.00016767,2]
[366273385,1750169481588,-490.0,0.00016767,2]
[366273386,1750169481597,-490.0,0.00016767,2]
[366273387,1750169481607,-853.32,0.00016767,2]
[366273388,1750169481617,-979.84,0.00016767,2]
[366273389,1750169481627,-620.94,0.00016767,2]
[366273390,1750169481637,-490.0,0.00016767,2]
[366273391,1750169481646,-214.597583,0.00016767,2]
[366273392,1750169481656,-214.597583,0.00016767,2]
[366273393,1750169481667,-490.0,0.00016767,2]
[366273394,1750169481677,-214.597583,0.00016767,2]
[366273395,1750169481687,-214.597583,0.00016767,2]
[366273396,1750169481696,-490.0,0.00016767,2]
[366273397,1750169481706,-490.0,0.00016767,2]
[366273398,1750169481715,-151.0,0.00016767,2]
[366273399,1750169481725,-490.0,0.00016767,2]
[366273400,1750169481734,-151.0,0.00016767,2]
[366273401,1750169481744,-736.33,0.00016767,2]
[366273402,1750169481753,-1342.17,0.00016767,2]
[366273403,1750169481763,-490.0,0.00016767,2]
[366273404,1750169481773,-499.75,0.00016767,2]
[366273405,1750169481785,-964.59,0.00016767,2]
[366273406,1750169481795,-490.0,0.00016767,2]
[366273407,1750169481804,-490.0,0.00016767,2]
[366273408,1750169481814,-490.0,0.00016767,2]
[366273409,1750169481823,-490.0,0.00016767,2]
[366273410,1750169481833,-490.0,0.00016767,2]
[366273411,1750169481843,-490.0,0.00016767,2]
[366273412,1750169481854,-490.0,0.00016767,2]
[366273413,1750169481864,-490.0,0.00016767,2]
[366273414,1750169481874,-150.69,0.00016767,2]
[366273415,1750169481883,-490.0,0.00016767,2]
[366273416,1750169481893,-490.0,0.00016767,2]
[366273417,1750169481902,-490.0,0.00016767,2]
[366273418,1750169481913,-860.7,0.00016767,2]
[366273419,1750169481922,-1225.62,0.00016767,2]
[366273420,1750169481931,-490.0,0.00016767,2]
[366273421,1750169481941,-490.0,0.00016767,2]
[366273422,1750169481951,-539.71,0.00016767,2]
[366273423,1750169481961,-490.0,0.00016767,2]
[366273424,1750169481971,-218.007186,0.00016767,2]
[366273425,1750169481981,-490.0,0.00016767,2]
[366273426,1750169481993,-490.0,0.00016767,2]
[366273427,1750169482003,-490.0,0.00016767,2]
[366273428,1750169482013,-490.0,0.00016767,2]
[366273429,1750169482022,-490.0,0.00016767,2]
[366273430,1750169482033,-558.59,0.00016767,2]
[366273431,1750169482043,-490.0,0.00016767,2]
[366273432,1750169482052,-490.0,0.00016767,2]
[366273433,1750169482062,-490.0,0.00016767,2]
[366273434,1750169482071,-490.0,0.00016767,2]
[366273435,1750169482081,-490.0,0.00016767,2]
[366273436,1750169482090,-718.62,0.00016767,2]
[366273437,1750169482099,-490.0,0.00016767,2]
[366273438,1750169482108,-490.0,0.00016767,2]
[366273439,1750169482118,-490.0,0.00016767,2]
[366273440,1750169482127,-490.0,0.00016767,2]
[366273441,1750169482137,-490.0,0.00016767,2]
[366273442,1750169482146,-782.22,0.00016767,2]
[366273443,1750169482155,-490.0,0.00016767,2]
[366273444,1750169482165,-176.32586799,0.00016767,2]
[366273445,1750169482174,-151.0,0.00016767,2]
[366273446,1750169482183,-151.0,0.00016767,2]
[366273447,1750169482193,-1358.3,0.00016767,2]
[366273448,1750169482202,-151.0,0.00016767,2]
[366273449,1750169482212,-490.0,0.00016767,2]
[366273450,1750169482222,-490.0,0.00016767,2]
[366273451,1750169482234,-490.0,0.00016767,2]
[366273452,1750169482243,-490.0,0.00016767,2]
[366273453,1750169482254,-490.0,0.00016767,2]
[366273454,1750169482266,-151.0,0.00016767,2]
[366273455,1750169482276,-774.0,0.00016767,2]
[366273456,1750169482286,-151.0,0.00016767,2]
[366273457,1750169482296,-151.0,0.00016767,2]
[366273458,1750169482307,-490.0,0.00016767,2]
[366273459,1750169482319,-429.79377813,0.00016767,2]
[366273460,1750169482329,-490.0,0.00016767,2]
[366273461,1750169482339,-490.0,0.00016767,2]
[366273462,1750169482349,-490.0,0.00016767,2]
[366273463,1750169482358,-490.0,0.00016767,2]
[366273464,1750169482368,-490.0,0.00016767,2]
[366273465,1750169482388,-490.0,0.00016767,2]
[366273466,1750169482404,-977.91,0.00016767,2]
[366273467,1750169482415,-490.0,0.00016767,2]
[366273468,1750169482425,-858.75,0.00016767,2]
[366273469,1750169482435,-490.0,0.00016767,2]
[366273470,1750169482446,-490.0,0.00016767,2]
[366273471,1750169482456,-490.0,0.00016767,2]
[366273472,1750169482465,-490.0,0.00016767,2]
[366273473,1750169482475,-490.0,0.00016767,2]
[366273474,1750169482485,-490.0,0.00016767,2]
[366273475,1750169482495,-895.63,0.00016767,2]
[366273476,1750169482505,-490.0,0.00016767,2]
[366273477,1750169482514,-3308.69,0.00016767,2]
[366273478,1750169482524,-490.0,0.00016767,2]
[366273479,1750169482536,-608.75575435,0.00016767,2]
[366273480,1750169482546,-529.47,0.00016767,2]
[366273481,1750169482557,-813.15,0.00016767,2]
[366273482,1750169482567,-490.0,0.00016767,2]
[366273483,1750169482576,-716.35,0.00016767,2]
[366273484,1750169482586,-490.0,0.00016767,2]
[366273485,1750169482596,-490.0,0.00016767,2]
[366273486,1750169482606,-227.73622035,0.00016767,2]
[366273487,1750169482616,-675.54,0.00016767,2]
[366273488,1750169482625,-584.43,0.00016767,2]
[366273489,1750169482635,-490.0,0.00016767,2]
[366273490,1750169482645,-490.0,0.00016767,2]
[366273491,1750169482654,-2578.29,0.00016767,2]
[366273492,1750169482665,-490.0,0.00016767,2]
[366273493,1750169482675,-1000.0,0.00016767,2]
[366273494,1750169482686,-532.08,0.00016767,2]
[366273495,1750169482697,-490.0,0.00016767,2]
[366273496,1750169482707,-490.0,0.00016767,2]
[366273497,1750169482717,-490.0,0.00016767,2]
[366273498,1750169482728,-490.0,0.00016767,2]
[366273499,1750169482738,-490.0,0.00016767,2]
[366273500,1750169482749,-3557.0,0.00016767,2]
[366273501,1750169482759,-490.0,0.00016767,2]
[366273502,1750169482770,-490.0,0.00016767,2]
[366273503,1750169482781,-672.09,0.00016767,2]
[366273504,1750169482792,-155.801001,0.00016767,2]
[366273505,1750169482803,-155.801001,0.00016767,2]
[366273506,1750169482813,-490.0,0.00016767,2]
[366273507,1750169482829,-490.0,0.00016767,2]
[366273508,1750169482839,-155.801001,0.00016767,2]
[366273509,1750169482849,-490.0,0.00016767,2]
[366273510,1750169482859,-155.801001,0.00016767,2]
[366273511,1750169482869,-11943.61,0.00016767,2]
[366273512,1750169482879,-490.0,0.00016767,2]
[366273513,1750169482889,-490.0,0.00016767,2]
[366273514,1750169482899,-566.84,0.00016767,2]
[366273515,1750169482909,-1094.03,0.00016767,2]
[366273516,1750169482919,-490.0,0.00016767,2]
[366273517,1750169482929,-490.0,0.00016767,2]
[366273518,1750169482938,-151.0,0.00016767,2]
[366273519,1750169482948,-17211.75,0.00016767,2]
[366273520,1750169482958,-490.0,0.00016767,2]
[366273521,1750169482968,-151.0,0.00016767,2]
[366273522,1750169482978,-832.33,0.00016767,2]
[366273523,1750169482988,-703.83,0.00016767,2]
[366273524,1750169482999,-514.4,0.00016767,2]
[366273525,1750169483008,-5013.84,0.00016767,2]
[366273526,1750169483019,-151.0,0.00016767,2]
[366273527,1750169483029,-293.229892,0.00016767,2]
[366273528,1750169483039,-490.0,0.00016767,2]
[366273529,1750169483050,-1839.52,0.00016767,2]
[366273530,1750169483060,-1649.83,0.00016767,2]
[366273531,1750169483070,-4063.7,0.00016767,2]
[366273532,1750169483081,-490.0,0.00016767,2]
[366273533,1750169483091,-391.981491,0.00016767,2]
[366273534,1750169483101,-391.981491,0.00016767,2]
[366273535,1750169483112,-2350.61,0.00016767,2]
[366273536,1750169483122,-490.0,0.00016767,2]
[366273537,1750169483132,-752.77,0.00016767,2]
[366273538,1750169483142,-847.99,0.00016767,2]
[366273539,1750169483152,-391.981491,0.00016767,2]
[366273540,1750169483162,-391.981491,0.00016767,2]
[366273541,1750169483172,-490.0,0.00016767,2]
[366273542,1750169483182,-1613.09,0.00016767,2]
[366273543,1750169483191,-1257.86,0.00016767,2]
[366273544,1750169483201,-490.0,0.00016767,2]
[366273545,1750169483210,-490.0,0.00016767,2]
[366273546,1750169483222,-490.0,0.00016767,2]
[366273547,1750169483233,-4609.04,0.00016767,2]
[366273548,1750169483243,-151.0,0.00016767,2]
[366273549,1750169483253,-151.0,0.00016767,2]
[366273550,1750169483263,-648.94,0.00016767,2]
[366273551,1750169483280,-7816.5,0.00016767,2]
[366273552,1750169483290,-656.63,0.00016767,2]
[366273553,1750169483300,-490.0,0.00016767,2]
[366273554,1750169483310,-490.0,0.00016767,2]
[366273555,1750169483321,-490.0,0.00016767,2]
[366273556,1750169483331,-490.0,0.00016767,2]
[366273557,1750169483340,-3140.73,0.00016767,2]
[366273558,1750169483350,-891.69,0.00016767,2]
[366273559,1750169483361,-2495.14,0.00016767,2]
[366273560,1750169483371,-1713.51,0.00016767,2]
[366273561,1750169483381,-490.0,0.00016767,2]
[366273562,1750169483390,-1173.83,0.00016767,2]
[366273563,1750169483399,-2068.92,0.00016767,2]
[366273564,1750169483409,-490.0,0.00016767,2]
[366273565,1750169483419,-490.0,0.00016767,2]
[366273566,1750169483429,-834.61,0.00016767,2]
[366273567,1750169483438,-1053.13,0.00016767,2]
[366273568,1750169483448,-1436.57,0.00016767,2]
[366273569,1750169483457,-13600.02,0.00016767,2]
[366273570,1750169483466,-490.0,0.00016767,2]
[366273571,1750169483476,-2035.2,0.00016767,2]
[366273572,1750169483486,-1624.32,0.00016767,2]
[366273573,1750169483496,-749.62,0.00016767,2]
[366273574,1750169483505,-1129.1,0.00016767,2]
[366273575,1750169483515,-1085.36,0.00016767,2]
[366273576,1750169483524,-151.0,0.00016767,2]
[366273577,1750169483536,-151.0,0.00016767,2]
[366273578,1750169483545,-490.0,0.00016767,2]
[366273579,1750169483555,-490.0,0.00016767,2]
[366273580,1750169483565,-490.0,0.00016767,2]
[366273581,1750169483577,-151.0,0.00016767,2]
[366273582,1750169483587,-1211.65,0.00016767,2]
[366273583,1750169483597,-2972.81,0.00016767,2]
[366273584,1750169483609,-2754.69,0.00016767,2]
[366273585,1750169483619,-490.0,0.00016767,2]
[366273586,1750169483630,-982.83,0.00016767,2]
[366273587,1750169483641,-581.64,0.00016767,2]
[366273588,1750169483651,-490.0,0.00016767,2]
[366273589,1750169483662,-2793.48,0.00016767,2]
[366273590,1750169483672,-490.0,0.00016767,2]
[366273591,1750169483682,-490.0,0.00016767,2]
[366273592,1750169483692,-2178.89,0.00016767,2]
[366273593,1750169483702,-1088.4,0.00016767,2]
[366273594,1750169483712,-490.0,0.00016767,2]
[366273595,1750169483728,-937.75,0.00016767,2]
[366273596,1750169483738,-2270.15,0.00016767,2]
[366273597,1750169483748,-1096.39,0.00016767,2]
[366273598,1750169483758,-1124.89,0.00016767,2]
[366273599,1750169483769,-990.72,0.00016767,2]
[366273600,1750169483780,-1731.97,0.00016767,2]
[366273601,1750169483790,-490.0,0.00016767,2]
[366273602,1750169483801,-490.0,0.00016767,2]
[366273603,1750169483812,-1265.55,0.00016767,2]
[366273604,1750169483822,-1177.05,0.00016767,2]
[366273605,1750169483832,-490.0,0.00016767,2]
[366273606,1750169483842,-490.0,0.00016767,2]
[366273607,1750169483852,-1048.47,0.00016767,2]
[366273608,1750169483862,-1064.68,0.00016767,2]
[366273609,1750169483873,-490.0,0.00016767,2]
[366273610,1750169483883,-582.38,0.00016767,2]
[366273611,1750169483893,-490.0,0.00016767,2]
[366273612,1750169483904,-490.0,0.00016767,2]
[366273613,1750169483915,-490.0,0.00016767,2]
[366273614,1750169483925,-490.0,0.00016767,2]
[366273615,1750169483936,-490.0,0.00016767,2]
[366273616,1750169483947,-571.21,0.00016767,2]
[366273617,1750169483958,-490.0,0.00016767,2]
[366273618,1750169483969,-22249.52,0.00016767,2]
[366273619,1750169483980,-490.0,0.00016767,2]
[366273620,1750169483990,-932.36,0.00016767,2]
[366273621,1750169484001,-490.0,0.00016767,2]
[366273622,1750169484012,-1881.22,0.00016767,2]
[366273623,1750169484022,-789.97,0.00016767,2]
[366273624,1750169484034,-490.0,0.00016767,2]
[366273625,1750169484044,-490.0,0.00016767,2]
[366273626,1750169484054,-490.0,0.00016767,2]
[366273627,1750169484065,-490.0,0.00016767,2]
[366273628,1750169484076,-490.0,0.00016767,2]
[366273629,1750169484087,-2066.19,0.00016767,2]
[366273630,1750169484099,-490.0,0.00016767,2]
[366273631,1750169484111,-1288.42,0.00016767,2]
[366273632,1750169484122,-1830.97,0.00016767,2]
[366273633,1750169484134,-1103.11,0.00016767,2]
[366273634,1750169484144,-490.0,0.00016767,2]
[366273635,1750169484155,-2691.09,0.00016767,2]
[366273636,1750169484174,-4277.63,0.00016767,2]
[366273637,1750169484190,-490.0,0.00016767,2]
[366273638,1750169484201,-1124.82,0.00016767,2]
[366273639,1750169484213,-14762.88,0.00016767,2]
[366273640,1750169484228,-1096.01,0.00016767,2]
[366273641,1750169484239,-939.97,0.00016767,2]
[366273642,1750169484250,-4985.11,0.00016767,2]
[366273643,1750169484263,-490.0,0.00016767,2]
[366273644,1750169484275,-490.0,0.00016767,2]
[366273645,1750169484289,-4334.13,0.00016767,2]
[366273646,1750169484301,-490.0,0.00016767,2]
[366273647,1750169484313,-197.662097,0.00016767,2]
[366273648,1750169484324,-197.662097,0.00016767,2]
[366273649,1750169484336,-5152.25,0.00016767,2]
[366273650,1750169484348,-490.0,0.00016767,2]
[366273651,1750169484360,-197.662097,0.00016767,2]
[366273652,1750169484372,-490.0,0.00016767,2]
[366273653,1750169484384,-490.0,0.00016767,2]
[366273654,1750169484395,-549.66,0.00016767,2]
[366273655,1750169484406,-151.0,0.00016767,2]
[366273656,1750169484418,-151.0,0.00016767,2]
[366273657,1750169484429,-817.67,0.00016767,2]
[366273658,1750169484440,-1571.77,0.00016767,2]
[366273659,1750169484452,-231.230912,0.00016767,2]
[366273660,1750169484465,-1107.9,0.00016767,2]
[366273661,1750169484476,-197.662097,0.00016767,2]
[366273662,1750169484487,-2051.76,0.00016767,2]
[366273663,1750169484498,-197.662097,0.00016767,2]
[366273664,1750169484509,-197.662097,0.00016767,2]
[366273665,1750169484520,-490.0,0.00016767,2]
[366273666,1750169484530,-558.38,0.00016767,2]
[366273667,1750169484542,-530.85,0.00016767,2]
[366273668,1750169484553,-490.0,0.00016767,2]
[366273669,1750169484563,-490.0,0.00016767,2]
[366273670,1750169484574,-490.0,0.00016767,2]
[366273671,1750169484585,-490.0,0.00016767,2]
[366273672,1750169484597,-490.0,0.00016767,2]
[366273673,1750169484613,-1457.05,0.00016767,2]
[366273674,1750169484625,-2928.8,0.00016767,2]
[366273675,1750169484637,-151.0,0.00016767,2]
[366273676,1750169484649,-151.0,0.00016767,2]
[366273677,1750169484660,-490.0,0.00016767,2]
[366273678,1750169484671,-490.0,0.00016767,2]
[366273679,1750169484683,-1551.96,0.00016767,2]
[366273680,1750169484694,-5348.6,0.00016767,2]
[366273681,1750169484706,-196.446202,0.00016767,2]
[366273682,1750169484717,-490.0,0.00016767,2]
[366273683,1750169484728,-906.9,0.00016767,2]
[366273684,1750169484740,-2076.09,0.00016767,2]
[366273685,1750169484752,-490.0,0.00016767,2]
[366273686,1750169484764,-490.0,0.00016767,2]
[366273687,1750169484775,-1063.05,0.00016767,2]
[366273688,1750169484788,-980.62,0.00016767,2]
[366273689,1750169484800,-956.35,0.00016767,2]
[366273690,1750169484811,-490.0,0.00016767,2]
[366273691,1750169484822,-490.0,0.00016767,2]
[366273692,1750169484833,-843.37,0.00016767,2]
[366273693,1750169484844,-2662.2,0.00016767,2]
[366273694,1750169484855,-598.755129,0.00016767,2]
[366273695,1750169484867,-598.755129,0.00016767,2]
[366273696,1750169484878,-598.755129,0.00016767,2]
[366273697,1750169484888,-1591.83,0.00016767,2]
[366273698,1750169484899,-598.755129,0.00016767,2]
[366273699,1750169484910,-2205.63,0.00016767,2]
[366273700,1750169484921,-598.755129,0.00016767,2]
[366273701,1750169484932,-598.755129,0.00016767,2]
[366273702,1750169484943,-893.6,0.00016767,2]
[366273703,1750169484955,-490.0,0.00016767,2]
[366273704,1750169484966,-590.84,0.00016767,2]
[366273705,1750169484978,-490.0,0.00016767,2]
[366273706,1750169484989,-1223.58,0.00016767,2]
[366273707,1750169485000,-545.58,0.00016767,2]
[366273708,1750169485011,-490.0,0.00016767,2]
[366273709,1750169485022,-490.0,0.00016767,2]
[366273710,1750169485034,-490.0,0.00016767,2]
[366273711,1750169485045,-490.0,0.00016767,2]
[366273712,1750169485057,-927.42,0.00016767,2]
[366273713,1750169485068,-1570.87,0.00016767,2]
[366273714,1750169485079,-1231.47,0.00016767,2]
[366273715,1750169485091,-490.0,0.00016767,2]
[366273716,1750169485103,-260.01181134,0.00016767,2]
[366273717,1750169485115,-469.43923166,0.00016767,2]